Cogmind - Beta 13 @@@ ROGUE MODE // 2024.04.07 @ 01:09:58 Player: naththebg Result: Destroyed by YI-UF0 with YI-UF0's Doublenader Performance ------------- Evolutions (0) 0 Regions Visited (2) 400 Robots Destroyed (27) 135 Value Destroyed (644) 644 Prototype IDs (0) 0 Alien Tech Used (0) 0 Bonus (0) 0 TOTAL SCORE: 1179 Bonus ------- None Cogmind --------- Core Integrity 0/250 Matter 249/300 Energy 98/100 System Corruption 1% Temperature Cool (0) Movement Rolling (90) Location -10/Mines Parts ------- > --- POWER (1) -------- (None) > --- PROPULSION (2) --- Armored Wheel Armored Wheel > --- UTILITY (2) ------ Large Storage Unit Improved Light Armor Plating > --- WEAPON (2) ------- Mini Grenade Launcher > --- INVENTORY (15) --- Light Deuterium Engine Armored Wheel Armored Wheel Improved Heat Sink Medium Storage Unit Structural Scanner Sensor Array Improved Terrain Scanner Hardened Light Armor Plating Mini Grenade Launcher Peak State ------------ > --- POWER ------------ Light Nuclear Core > --- PROPULSION ------- Armored Wheel Armored Wheel > --- UTILITY ---------- Medium Storage Unit Structural Scanner > --- WEAPON ----------- EM Pulse Gun Shotgun > --- INVENTORY -------- Armored Wheel Armored Wheel Heat Sink Improved Heat Sink Large Storage Unit Sensor Array Improved Terrain Scanner Seismic Detector Hardened Light Armor Plating Grenade Launcher [Rating: 13] Favorites ----------- Power Ion Engine Engine Ion Engine Power Core Light Nuclear Core Propulsion Aluminum Leg Leg Aluminum Leg Wheel Armored Wheel Utility Improved Terrain Scanner Device Improved Terrain Scanner Storage Medium Storage Unit Protection Hardened Light Armor Plating Weapon Small Laser Energy Gun Small Laser Ballistic Gun Light Assault Rifle Launcher Grenade Launcher Build | -11 -10 -10 ------- Run | Yrd Mat Min Slots Evolved . | . . . Power . | . . . Propulsion . | . . . Utility . | . . . Weapon . | . . . Parts Attached 38 | 9 22 7 Power 6 | 3 3 . Engine 4 | 3 1 . Core 2 | . 2 . Reactor . | . . . Propulsion 8 | 2 5 1 Treads . | . . . Leg 5 | 2 3 . Wheel 3 | . 2 1 Hover . | . . . Flight . | . . . Utility 9 | 2 4 3 Device 4 | 2 2 . Storage 3 | . 2 1 Processor . | . . . Hackware . | . . . Protection 2 | . . 2 Artifact . | . . . Weapon 15 | 2 10 3 Energy Gun 7 | 2 5 . Energy Cannon . | . . . Ballistic Gun 4 | . 3 1 Ballistic Cannon . | . . . Launcher 4 | . 2 2 Special Weapon . | . . . Impact Weapon . | . . . Slashing Weapon . | . . . Piercing Weapon . | . . . Special Melee Weapon . | . . . Unidentified Prototypes . | . . . Parts Lost 5 | . 1 4 Power 2 | . 1 1 Propulsion . | . . . Utility . | . . . Weapon 3 | . . 3 Highest Loss Streak 2 | . 1 2 To Critical Strikes . | . . . Average Slot Usage (%) 97 | . 98 86 Engine 7 | . 8 . Core 5 | . 5 6 Leg 15 | . 16 . Wheel 12 | . 10 28 Device 15 | . 15 7 Storage 12 | . 12 14 Energy Gun 15 | . 16 1 Ballistic Gun 3 | . 2 11 Launcher 8 | . 8 11 Naked Turns . | . . . Heaviest Build 31 | 9 26 31 Greatest Support 24 | 20 24 24 Greatest Overweight (x) 1 | . 1 1 Average Overweight (x) . | . . . Largest Inventory Capacity 15 | 5 15 15 Average Capacity 7 | 5 9 11 Most Carried 10 | 5 10 10 Average Carried 6 | 3 8 8 Final Capacity 15 | 5 10 15 Final Carried 10 | 5 10 10 Class Distribution -------------------- 87% | Mutant 12% | Scavenger-Mutant Dominant Class ---------------- Mutant | -10/Materials Mutant | -10/Mines Resources | -11 -10 -10 ----------- Run | Yrd Mat Min Matter Collected 880 | 290 358 232 Remotely . | . . . Salvage Created 795 | 51 561 183 Parts 60 | 6 49 5 Haulers Intercepted . | . . . Recyclers Shooed 2 | . 2 . Parts Field Recycled . | . . . Retrieved Matter . | . . . Parts Self-Destructed . | . . . Prevented . | . . . Kills | -11 -10 -10 ------- Run | Yrd Mat Min Combat Hostiles Destroyed 27 | 1 15 11 Guns 15 | 1 9 5 AOE 12 | . 6 6 Classes Destroyed 7 | 2 4 1 Worker 3 | . 3 . Tunneler 1 | 1 . . Recycler 2 | . 1 1 Watcher 3 | . 3 . Swarmer 6 | . 6 . Grunt 12 | 1 9 2 Assembled 9 | . . 9 Best Kill Streak 10 | 2 4 10 Combat Bots Only 9 | 1 3 9 Max Kills in Single Turn 4 | 1 3 4 Gunslinging 1 | . 1 . Exploded 3 | . 3 3 Melee . | . . . Uniques/NPCs Destroyed . | . . . Combat | -11 -10 -10 -------- Run | Yrd Mat Min Hostile Shots Fired 115 | 5 62 48 Missed 38 | . 21 17 Damage Taken 1098 | 52 432 614 Core 260 | 11 104 145 Absorbed by Shields . | . . . Regen/Repaired (Parts) 186 | . 186 . Core Remaining (%) 95 | 95 . . Volleys Fired 93 | 16 61 16 Largest 2 | 2 2 2 Hottest 80 | 80 80 63 Shots Fired 173 | 32 114 27 Gun 146 | 32 97 17 Cannon . | . . . Launcher 27 | . 17 10 Special . | . . . Kinetic 59 | . 45 14 Thermal 59 | 32 27 . Explosive 27 | . 17 10 Electromagnetic 28 | . 25 3 Robot Hit Streak 8 | 5 6 8 Robot Miss Streak 3 | 3 3 2 Penetration Max . | . . . Secondary Targets 4 | . 3 1 Max Gunslinging Chain 1 | . 1 1 Shots Hit Robots 81 | 5 56 20 Core Hits 67 | 3 37 27 Critical Kills . | . . . Critical Parts Destroyed . | . . . Critical Strikes . | . . . Melee Attacks . | . . . Impact . | . . . Slashing . | . . . Piercing . | . . . Sneak Attacks . | . . . Combat Hostiles . | . . . Follow-up Attacks . | . . . Damage Inflicted 1997 | 54 1254 689 Guns 762 | 54 499 209 Cannons . | . . . Explosions 1234 | . 754 480 Melee . | . . . Ramming 1 | . 1 . Kinetic 348 | . 177 171 Thermal 208 | 54 154 . Explosive 1234 | . 754 480 Electromagnetic 206 | . 168 38 Impact . | . . . Slashing . | . . . Piercing . | . . . Highest Corruption 1 | . 1 1 Average Corruption 1 | . 1 1 Corruption Purged . | . . . Corruption Blocked . | . . . Effects 9 | . 8 1 Message Errors 3 | . 3 . Matter Fused 1 | . 1 . Energy Discharges 1 | . 1 . Data Loss (major) 2 | . 1 1 Alerts 2 | . 2 . Overload Shots . | . . . Overflow Damage 24 | . 6 18 Projectiles . | . . . Explosions 24 | . 6 18 Melee . | . . . Knockbacks . | . . . Impact . | . . . Kinetic . | . . . Secondary . | . . . Self-Inflicted Damage 153 | . 27 126 Shots 7 | . 2 5 Rammed 1 | . 1 . Targets Rammed 2 | . 2 . Kicked 1 | . 1 . Crushed . | . . . Highest Temperature 198 | 198 94 84 Average Temperature 42 | 85 24 42 Received Heat Transfer 279 | 30 177 72 Siege Activations . | . . . Robots Corrupted . | . . . Combat Hostiles . | . . . Parts Fried . | . . . Impact Corruptions . | . . . Robots Melted . | . . . Combat Hostiles . | . . . Parts Melted . | . . . Heat Transferred 475 | 125 350 . Parts Sabotaged . | . . . Parts Stolen . | . . . Parts Stripped . | . . . Power Chain Reactions . | . . . Alert | -11 -10 -10 ------- Run | Yrd Mat Min Peak Influence 297 | 25 297 205 Initial 111 | . . 111 Average 77 | 5 132 168 Maximum Alert Level 1 | . 1 1 Low Security (%) 85 | 100 71 96 Level 1 14 | . 28 3 Level 2 . | . . . Level 3 . | . . . Level 4 . | . . . Level 5 . | . . . High Security . | . . . Max Security . | . . . Squads Dispatched 5 | . 5 . Investigation 3 | . 3 . Extermination . | . . . Reinforcement 2 | . 2 . Assault . | . . . Garrison . | . . . Intercept . | . . . Searches Triggered . | . . . Construction Impeded . | . . . Haulers Reinforced . | . . . Active Scanning Responses . | . . . Cargo Convoy Interrupts . | . . . Stealth | -11 -10 -10 --------- Run | Yrd Mat Min Distress Signals 1 | . 1 . Communications Jammed . | . . . Distress Signals . | . . . Times Spotted 41 | 1 27 13 Peak Tracking Total 7 | 1 3 7 Tactical Retreats . | . . . Traps | -11 -10 -10 ------- Run | Yrd Mat Min Traps Triggered 1 | . 1 . Indirectly . | . . . Trap Hack Attempts . | . . . Triggered . | . . . Disarmed . | . . . Reprogrammed . | . . . Reused . | . . . Traps Extracted . | . . . Installed . | . . . Triggered . | . . . Machines | -11 -10 -10 ---------- Run | Yrd Mat Min Machines Disabled 8 | . 8 . Max in Single Turn 2 | . 2 . Machines Repaired . | . . . Machines Dismantled . | . . . Machines Sabotaged . | . . . Overloaded Fab Kills . | . . . Hacking | -11 -10 -10 --------- Run | Yrd Mat Min Machines Accessed 7 | . 7 . Terminals 4 | . 4 . Fabricators . | . . . Repair Stations 1 | . 1 . Recycling Units 2 | . 2 . Scanalyzers . | . . . Garrison Access . | . . . Total Hacks 26 | . 26 . Successful 18 | . 18 . Failed 8 | . 8 . Catastrophic 3 | . 3 . Database Lockouts . | . . . Manual 1 | . 1 . Terminals 8 | . 8 . Fabricators . | . . . Repair Stations 11 | . 11 . Recycling Units 7 | . 7 . Scanalyzers . | . . . Garrison Access . | . . . Terminal Hacks 3 | . 3 . Dispatch Records 1 | . 1 . Maintenance Status 1 | . 1 . Hauler Manifests 1 | . 1 . Fabricator Hacks . | . . . Repair Station Hacks 10 | . 10 . Scan Component 5 | . 5 . Repair 5 | . 5 . Recycling Unit Hacks 5 | . 5 . Process 1 | . 1 . Report Inventory 1 | . 1 . Retrieve Matter 1 | . 1 . Retrieve Components 2 | . 2 . Scanalyzer . | . . . Garrison Access Hacks . | . . . Unauthorized Hacks . | . . . Terminals . | . . . Fabricators . | . . . Repair Stations . | . . . Recycling Units . | . . . Scanalyzers . | . . . Garrison Access . | . . . Data Cores Recovered . | . . . Used . | . . . Hacking Detections 6 | . 6 . Full Trace Events 4 | . 4 . Feedback Events 1 | . 1 . Corruption 1 | . 1 . Feedback Blocked . | . . . Robot Schematics Acquired . | . . . Robots Built . | . . . Authchips . | . . . Time . | . . . Total Robot Build Rating . | . . . Part Schematics Acquired . | . . . Parts Built . | . . . Authchips . | . . . Time . | . . . Total Part Build Rating . | . . . Parts Repaired 5 | . 5 . Time 142 | . 142 . Parts Recycled . | . . . Recycled Matter . | . . . Retrieved Matter 14 | . 14 . Retrieved Components 10 | . 10 . Parts Scanalyzed . | . . . Part Schematics Acquired . | . . . Parts Damaged . | . . . Bothacking | -11 -10 -10 ------------ Run | Yrd Mat Min Used RIF Installer . | . . . Robots Hacked . | . . . Non-combat . | . . . Combat . | . . . Robot Hacks Applied . | . . . Relay Couplers Released . | . . . Fabnet Peak Effective % . | . . . Robots Rewired . | . . . Allies Hacked . | . . . Hacks Repelled . | . . . Allies | -11 -10 -10 -------- Run | Yrd Mat Min Total Allies . | . . . Largest Group . | . . . Highest-Rated Group . | . . . Highest-Rated Ally . | . . . Total Orders . | . . . Ally Attacks . | . . . Total Damage . | . . . Kills . | . . . Allies Corrupted . | . . . Allies Melted . | . . . Intel | -11 -10 -10 ------- Run | Yrd Mat Min Robot Analysis Total . | . . . Derelict Logs Recovered . | . . . Drone Launches . | . . . Drone Recoveries . | . . . Exploration | -11 -10 -10 ------------- Run | Yrd Mat Min Turns Passed 2937 | 1307 1489 141 Spaces Moved 1405 | 285 1031 89 Core 25 | 25 . . Treads . | . . . Legs 807 | 260 547 . Wheels 573 | . 484 89 Hover . | . . . Flight . | . . . Fastest Speed 50 | 50 90 90 Average Speed 106 | 113 105 92 Slowest Speed 190 | 120 190 105 Overloaded Moves . | . . . Propulsion Burnouts . | . . . Robots Hopped . | . . . Cave-ins Triggered . | . . . Exploration Rate (%) 46 | 22 97 20 Regions Visited 2 Branch Regions 1 Pre-discovered Areas . | . . . Known Exits Taken . | . . . Unknown Exits Taken 2 | 1 1 . Scrap Searched . | . . . Spaces Dug . | . . . Terrain Destroyed 201 | . 128 73 Melee . | . . . Projectile . | . . . AOE 201 | . 128 73 Terrain Rammed . | . . . Walls Destroyed . | . . . Machines Disabled . | . . . Actions | -11 -10 -10 --------- Run | Yrd Mat Min Total 2677 | 1236 1322 119 Wait 1074 | 912 161 1 Move 1403 | 284 1030 89 Hop . | . . . Pick Up 42 | 13 25 4 Fast Attach 6 | . 6 . Attach 12 | 8 2 2 Detach 2 | 1 1 . Swap 20 | 1 14 5 Drop 23 | 1 20 2 Fire 93 | 16 61 16 Melee . | . . . Ram 1 | . 1 . Kick 1 | . 1 . Crush . | . . . Escape Stasis . | . . . Rewire . | . . . Trap . | . . . Miscellaneous . | . . . Route ------- -11/Scrapyard -10/Materials (discovered 4 exits: [*Mat x3] / [*Min]) -10/Mines History --------- Turn | Location | Event 2 | -11/Scrapyard | Met Revision 17 72 | -11/Scrapyard | Discovered new exit (range 8) 1308 | -11/Scrapyard | Entered Materials 1312 | -10/Materials | Build established: Mutant 1600 | -10/Materials | Discovered new exit (range 7) 1805 | -10/Materials | Build established: Scavenger-Mutant 2089 | -10/Materials | Repaired Aluminum Leg 2110 | -10/Materials | Build established: Mutant 2117 | -10/Materials | Repaired Aluminum Leg 2169 | -10/Materials | Discovered new exit (range 4) 2333 | -10/Materials | Discovered new exit (range 15) 2660 | -10/Materials | Repaired EM Pulse Gun 2688 | -10/Materials | Repaired Grenade Launcher 2727 | -10/Materials | Repaired Lgt. Nuclear Core 2790 | -10/Materials | Discovered new exit (range 8) 2797 | -10/Materials | Entered Mines 2798 | -10/Mines | Assembled infested the area 2802 | -10/Mines | Core integrity fell below 50% 2928 | -10/Mines | Destroyed 9 combat bots 2934 | -10/Mines | Core integrity fell below 20% 2938 | -10/Mines | Destroyed by YI-UF0 with YI-UF0's Doublenader Last Messages --------------- Acquired 64 matter. The unstable cave ceiling collapses. Dropped Seismic Detector. Acquired 1 matter. Acquired 7 matter. Acquired Lgt. Deuterium Engine. Acquired Imp. Light Armor Plating. Acquired 19 matter. The unstable cave ceiling collapses. Acquired Mni. Grenade Launcher. Acquired 26 matter. YI-UF0 mumbles something. The unstable cave ceiling collapses. R-06 Scavenger collects Wheel. The unstable cave ceiling collapses. U-05 Engineer lays Concrete. YI-UF0 mumbles something. The unstable cave ceiling collapses. U-05 Engineer lays Concrete. [Achievement: First Step to Greatness] Map ----- +----------------------------------------------------+ | ?????????????????????????????????????????????????? | | ?????????????????????????????????????????????????? | | ?????????????????????????????????????????????????? | | ?????????????????????????????????????????????????? | | ?????????????????????????????????????????????????? | | ?????????????????????????????????????????????????? | | ?????????????????????????????????????????????????? | | ?????????????????????????????????????????????????? | | ?????????????????????????????????????????????????? | | ?????????????????????????????????????????????????? | | ?????????????????##??????????? ?????????????????? | | ??????????????% # ##????????? #?????????????????? | | ????????????? ###??????? ##????????????????? | | ???????????? ###???## ###???????????????? | | ??????????? #### u ###?????????????? | | ???????????? % ###???????????? | | ??????????? ## ?????????? | | ???????????? ?????????? | | ????######## t ??????????? | | ????######### ? r ????????????? | | ????## ##??# ??????????????? | | ????## ##### ????????????????? | | ????## *#### ##????????????????? | | ????## ![=### # ! ##????????????????? | | ????## ## # # ## ##?????????????????? | | ????## ## # @ ! #?????????????????? | | ????## ## # #?????????????????? | | ????##### #### # # # = * ###????????????????? | | ????##### ### #### #????????????????? | | ???????## ## # ##t#????????????????? | | ???????## !%= # #????????????????? | | ???????## ### # ##?#????????????????? | | ???????## ## % [ %! #???????????????????? | | ???????## ## * % # #???????????????????? | | ???????## ## g ##???????????????????? | | ???????## # # ##????????????????????? | | ???????## ## #?????????????????????? | | ???????## ## ####?????????????????????? | | ???????## ## ?????????????????????????? | | ???????## ## ?????????????????????????? | | ???????## ?????????????????????????? | | ????????? ## ?????????????????????????? | | ????????? ## ?????????????????????????? | | ????????? ####??#######??????????????????????????? | | ????????? ?###???????????????????????????????????? | | ????????? ???????????????????????????????????????? | | ????????? ???????????????????????????????????????? | | ?????????????????????????????????????????????????? | | ?????????????????????????????????????????????????? | | ?????????????????????????????????????????????????? | +----------------------------------------------------+ Best States ------------- Heat Dissipation 25 Energy Generation 14 Energy Capacity 250 Matter Stores 300 Matter Capacity 300 Sight Range 16 Terrain Scan Range 16 Terrain Scan Density 10 Armor Coverage 150 Evasion (%) 55 Item Schematics ----------------- None Robot Schematics ------------------ None Fabricated ------------ Nothing Alien Tech Used ----------------- None Achievements -------------- First Step to Greatness Let's See Who's Tougher One Hack Too Far Part-time Mechanic Remodeling Shopping List Uninvited Guest Challenges ------------ None Game ------ Seed LongswordHeatMicroactuators Manual? 0 Play Time 01:28:18 Cumulative 1.4 hours Start 2024.04.03 @ 21:04:49 End 2024.04.07 @ 01:09:58 Sessions 5 Manual Loads 0 Difficulty Rogue Special Mode None Game No. 1 Rogue 1 Adventurer 0 Explorer 0 Win Type - Total 0 Types 0/0/0/0/0/0/0/0/0 Lore% 0 Gallery% 1 Achievement% 2 Wizard Run 0 Options --------- Layout 1 ASCII 0 Keyboard 0 Movement Mouse Keybinds 0 Fullscreen 1 Font 24/Smallcaps Map View 50x35 Zoom Use 0% Tactical HUD 0 Map Filters NONE Filters NONE Steam 1 RUN: 0ad4b0c3-dd83-40b8-8391-9d8062b02a14